bitfinex/quotes_BTCUSD_20250206
["timestamp","ask_amount","ask_price","bid_price","bid_amount"]
[1738807944516,0.0001068,97225.0,97224.0,0.80120616]
[1738807947950,0.0001068,97225.0,97224.0,0.78203624]
[1738807949715,0.0001068,97225.0,97224.0,0.87155802]
[1738807949922,0.0001068,97225.0,97224.0,1.42345802]
[1738807950328,0.0001068,97225.0,97224.0,1.44912702]
[1738807950765,0.00018749,97231.0,97230.0,0.314273]
[1738807950984,0.00018749,97231.0,97230.0,0.47172724]
[1738807951541,0.00018749,97231.0,97230.0,0.55411168]
[1738807951974,0.00018749,97231.0,97230.0,0.52938098]
[1738807952938,0.00018749,97231.0,97230.0,0.49461128]
[1738807953123,0.00018749,97231.0,97230.0,0.51206877]
[1738807953324,0.00018749,97231.0,97230.0,1.37426877]
[1738807953579,0.00018749,97231.0,97230.0,1.37595281]
[1738807953922,0.00018749,97231.0,97230.0,1.40068351]
[1738807954974,0.00018749,97231.0,97230.0,1.41071291]
[1738807957435,0.00018749,97231.0,97230.0,1.39157138]
[1738807958635,0.0001068,97247.0,97246.0,0.154247]
[1738807958834,0.0001068,97247.0,97246.0,1.3453098]
[1738807959034,0.0001068,97247.0,97246.0,1.3668711]
[1738807959212,0.0001068,97273.0,97257.0,0.01]
[1738807959440,0.007117,97283.0,97282.0,0.33719]
[1738807959623,0.00041958,97300.0,97291.0,0.01]
[1738807959828,0.00041958,97300.0,97299.0,0.327163]
[1738807960033,0.00041958,97300.0,97299.0,0.42966665]
[1738807960252,0.00041958,97300.0,97299.0,0.40666665]
[1738807960456,0.00046603,97300.0,97299.0,0.40666665]
[1738807960679,0.00046603,97300.0,97299.0,0.47934116]
[1738807961814,0.00046603,97300.0,97299.0,0.48975214]
[1738807963691,0.00046603,97300.0,97299.0,0.45918321]
[1738807965333,0.00046603,97300.0,97299.0,0.77948321]
[1738807968097,0.00057283,97300.0,97299.0,0.77948321]
[1738807969631,0.00057283,97300.0,97299.0,0.76037763]
[1738807972046,0.00057283,97300.0,97299.0,0.79595471]
[1738807974679,1e-08,97300.0,97299.0,0.79595471]
[1738807975156,1e-08,97300.0,97299.0,0.78595471]
[1738807975358,1e-08,97300.0,97299.0,0.76037763]
[1738807978786,1e-08,97300.0,97299.0,0.76069943]
[1738807979503,1e-08,97300.0,97299.0,0.76037763]
[1738807979885,1e-08,97300.0,97299.0,0.78524933]
[1738807980290,1e-08,97300.0,97299.0,0.76037763]
[1738807982594,1e-08,97300.0,97299.0,0.77037763]
[1738807983045,1e-08,97300.0,97299.0,1.31227763]
[1738807983463,1e-08,97300.0,97299.0,1.34397763]
[1738807983640,0.0753,97315.0,97305.0,0.327154]
[1738807983867,0.0753,97315.0,97305.0,0.74995765]
[1738807986809,0.0812068,97322.0,97305.0,0.80250444]
[1738807986964,0.0812068,97322.0,97305.0,0.83121034]
[1738807988973,0.0812068,97322.0,97305.0,0.84121034]
[1738807989341,0.0812068,97322.0,97305.0,0.80250444]
[1738807989478,0.0812068,97322.0,97305.0,0.81206638]
[1738807990291,0.0812068,97322.0,97305.0,0.80206638]
[1738807990734,0.0812068,97322.0,97305.0,0.81206638]
[1738807991030,0.0812068,97322.0,97305.0,0.80206638]
[1738807991236,0.0812068,97322.0,97305.0,0.81206638]
[1738807991577,0.0812068,97322.0,97305.0,0.80206638]
[1738807992000,0.0812068,97322.0,97305.0,1.34396638]
[1738807992805,0.0072885,97306.0,97305.0,1.34396638]
[1738807994346,0.0072885,97306.0,97305.0,1.35396638]
[1738807994542,0.0072885,97306.0,97305.0,1.35432776]
[1738807994879,0.0072885,97306.0,97305.0,1.368279]
[1738807995056,0.0812068,97322.0,97321.0,0.154129]
[1738807995284,0.0812068,97322.0,97321.0,0.46136086]
[1738807996617,0.0001068,97322.0,97321.0,0.78166086]
[1738807996824,0.0001068,97322.0,97321.0,0.8109245]
[1738807997249,0.0147743,97340.0,97339.0,0.3271]
[1738807997473,0.01523903,97340.0,97339.0,0.74990365]
[1738807997730,0.01523903,97340.0,97339.0,0.78163186]
[1738808000091,0.01523903,97340.0,97339.0,0.75863186]
[1738808000443,0.14093903,97340.0,97339.0,0.57280365]
[1738808000858,0.14558801,97340.0,97339.0,0.57280365]
[1738808001061,0.34556181,97340.0,97339.0,0.10250365]
[1738808001272,0.1257,97333.0,97321.0,0.3203]
[1738808001531,0.0762,97331.0,97323.0,0.15]
[1738808001672,0.0762,97331.0,97329.0,0.154115]
[1738808001875,0.0762,97331.0,97330.0,0.10250365]
[1738808002095,0.0762,97331.0,97330.0,0.25250365]
[1738808002301,0.0762,97331.0,97330.0,0.28429693]
[1738808002939,0.0762,97331.0,97330.0,0.25250365]
[1738808003323,0.08084809,97331.0,97330.0,0.25250365]
[1738808003528,0.0762,97331.0,97330.0,0.25250365]
[1738808004547,0.23496182,97331.0,97330.0,0.10250365]
[1738808004984,0.154126,97323.0,97321.0,0.15]
[1738808005270,0.205486,97330.0,97311.0,0.205526]
[1738808005271,0.00463999,97322.0,97311.0,0.01018646]
[1738808005487,0.00463999,97322.0,97313.0,0.10250365]
[1738808005618,0.0496,97320.0,97313.0,0.10250365]
[1738808005823,0.1286,97314.0,97313.0,0.10250365]
[1738808006070,0.13323588,97314.0,97313.0,0.10250365]
[1738808007044,0.13323588,97314.0,97300.0,0.29235737]
[1738808007303,0.0759,97304.0,97301.0,0.10250365]
[1738808007699,0.00463549,97303.0,97301.0,0.10250365]
[1738808007873,0.0759,97302.0,97301.0,0.10250365]
[1738808008890,0.0832,97317.0,97316.0,0.023]
[1738808009186,0.0832,97317.0,97316.0,0.27550365]
[1738808009187,0.08781695,97317.0,97316.0,0.27550365]
[1738808009512,0.0832,97317.0,97316.0,0.27550365]
[1738808011426,0.047,97337.0,97336.0,0.154105]
[1738808011625,0.05162134,97337.0,97336.0,0.25660865]
[1738808012013,0.047,97337.0,97336.0,0.25660865]
[1738808015259,0.15576387,97337.0,97336.0,0.10250365]
[1738808015569,0.280403,97337.0,97336.0,0.10250365]
[1738808015789,0.2850381,97337.0,97336.0,0.10250365]
[1738808016514,0.0452,97335.0,97318.0,0.15]
[1738808016711,0.0793,97331.0,97325.0,0.15]
[1738808016889,0.0793,97331.0,97328.0,0.00022407]
[1738808017067,0.205479,97334.0,97328.0,0.00022407]
[1738808017068,0.15874772,97330.0,97329.0,0.10250365]
[1738808017269,0.24044772,97330.0,97329.0,0.10250365]
[1738808017892,0.08633372,97330.0,97329.0,0.10250365]
[1738808019249,0.13283372,97330.0,97329.0,0.10250365]
[1738808020533,0.282416,97329.0,97328.0,0.00022407]
[1738808020764,0.28705283,97329.0,97328.0,0.00022407]
[1738808021431,0.30095036,97329.0,97328.0,0.00022407]
[1738808021849,0.14683436,97329.0,97328.0,0.00022407]
[1738808022339,0.14683436,97329.0,97328.0,0.25684572]
[1738808022748,0.1283,97329.0,97328.0,0.10272772]
[1738808023112,0.1329332,97329.0,97328.0,0.10272772]
[1738808024477,0.1283,97329.0,97328.0,0.10272772]
[1738808024835,0.1329332,97329.0,97328.0,0.10272772]
[1738808025345,0.1283,97329.0,97328.0,0.10272772]
[1738808026752,0.0791,97329.0,97328.0,0.10272772]
[1738808026954,0.0758,97339.0,97337.0,0.154102]
[1738808027299,0.0758,97339.0,97338.0,0.10250365]
[1738808029281,0.0759068,97339.0,97338.0,0.10250365]
[1738808031497,0.0769,97337.0,97328.0,0.00022407]
[1738808031687,0.0769,97337.0,97329.0,0.10250365]
[1738808031915,0.0769,97330.0,97329.0,0.10250365]
[1738808032602,0.1264,97330.0,97329.0,0.10250365]
[1738808033054,0.154114,97331.0,97328.0,0.00022407]
[1738808033055,0.154116,97329.0,97328.0,0.00022407]
[1738808033270,0.280516,97329.0,97328.0,0.00022407]
[1738808034247,0.28515452,97329.0,97328.0,0.00022407]
[1738808035088,0.13103852,97329.0,97328.0,0.10272772]
[1738808036476,0.18737457,97329.0,97328.0,0.00022407]
[1738808038362,0.13103852,97329.0,97328.0,0.00022407]
[1738808038566,0.13103852,97329.0,97328.0,0.10272772]
[1738808038769,0.09546328,97329.0,97328.0,0.10272772]
[1738808039018,0.09082476,97329.0,97328.0,0.25272772]
[1738808039983,0.0769,97329.0,97328.0,0.25272772]
[1738808040455,0.01534573,97340.0,97338.0,0.154102]
[1738808040658,0.01534573,97340.0,97338.0,0.25660565]
[1738808041335,0.00473666,97339.0,97338.0,0.25660565]
[1738808042155,0.0001068,97339.0,97338.0,0.25660565]
[1738808044132,0.0001068,97339.0,97338.0,0.72690565]
[1738808044575,0.0001068,97339.0,97338.0,0.78174886]
[1738808047652,0.0001068,97339.0,97338.0,0.7921443]
[1738808049561,0.0001068,97339.0,97338.0,0.76030109]
[1738808049743,0.0001068,97339.0,97338.0,0.79210878]
[1738808051392,0.0001068,97339.0,97338.0,0.81263328]
[1738808062155,0.0001068,97339.0,97338.0,1.37573328]
[1738808062377,0.0001068,97339.0,97338.0,1.45421022]
[1738808062614,0.0001068,97339.0,97338.0,1.4832234]
[1738808062815,0.0001068,97339.0,97338.0,1.45899988]
[1738808062945,0.01133399,97340.0,97339.0,0.19539642]
[1738808063150,0.01133399,97340.0,97339.0,0.33073471]
[1738808063349,0.01133399,97340.0,97339.0,0.32970776]
[1738808065040,0.01133399,97340.0,97339.0,0.31731134]
[1738808066252,0.01133399,97340.0,97339.0,1.19190776]
[1738808068252,0.00799503,97340.0,97339.0,1.19190776]
[1738808068739,0.00799503,97340.0,97339.0,1.20190776]
[1738808068989,0.0756,97371.0,97344.0,0.337092]
[1738808069217,0.00024518,97345.0,97344.0,0.47140334]
[1738808069445,0.00024518,97345.0,97344.0,0.48384422]
[1738808071736,0.0756,97371.0,97369.0,0.154053]
[1738808071981,0.0756,97371.0,97369.0,0.25655665]
[1738808072200,0.0756,97371.0,97370.0,0.10250365]
[1738808072896,0.0756,97371.0,97370.0,0.25655465]
[1738808074048,0.0756,97371.0,97370.0,0.40655465]
[1738808076165,0.0757068,97371.0,97370.0,0.40655465]
[1738808077479,0.0757068,97371.0,97370.0,0.42955465]
[1738808077676,0.0001068,97371.0,97370.0,0.42955465]
[1738808077877,0.0001068,97371.0,97370.0,0.4715264]
[1738808079146,0.0001068,97371.0,97370.0,0.81371726]
[1738808079573,0.0001068,97371.0,97370.0,1.35561726]
[1738808079777,0.0001068,97371.0,97370.0,1.3694517]
[1738808079977,0.1254,97397.0,97396.0,0.30401]
[1738808080150,0.07603928,97397.0,97396.0,0.74981365]
[1738808081415,0.00013928,97397.0,97396.0,0.74981365]
[1738808081633,0.07603928,97397.0,97396.0,0.74981365]
[1738808082287,0.00013928,97397.0,97396.0,0.74981365]
[1738808083965,0.00013928,97397.0,97396.0,0.76004263]
[1738808085235,0.13033928,97397.0,97396.0,0.11273263]
[1738808085442,0.13033928,97397.0,97396.0,0.10250365]
[1738808085646,0.13504812,97397.0,97396.0,0.10250365]
[1738808088260,0.13474812,97397.0,97396.0,0.10250365]
[1738808088466,0.13003928,97397.0,97396.0,0.10250365]
[1738808088691,0.13003928,97397.0,97396.0,0.11280127]
[1738808088892,0.13014608,97397.0,97396.0,0.10250365]
[1738808089536,0.13485434,97397.0,97396.0,0.10250365]
[1738808092162,0.13485434,97397.0,97396.0,0.25651365]
[1738808092632,0.13485434,97397.0,97396.0,0.10250365]
[1738808093918,0.18554523,97397.0,97396.0,0.10250365]
[1738808094067,0.0823,97396.0,97372.0,0.29675308]
[1738808094295,0.0823,97380.0,97376.0,0.10250365]
[1738808094490,0.00469429,97379.0,97376.0,0.10250365]
[1738808094806,0.1307,97377.0,97376.0,0.10250365]
[1738808095008,0.202446,97373.0,97372.0,0.09135608]
[1738808095231,0.281946,97373.0,97372.0,0.09135608]
[1738808095483,0.28664187,97373.0,97372.0,0.09135608]
[1738808096263,0.0832,97369.0,97362.0,0.154063]
[1738808096409,0.237253,97369.0,97363.0,0.10250365]
[1738808096610,0.00469488,97368.0,97363.0,0.10250365]
[1738808097443,0.0832,97367.0,97363.0,0.10250365]
[1738808097644,0.08789478,97367.0,97363.0,0.10250365]
[1738808098448,0.08789478,97367.0,97357.0,0.09135608]
[1738808098449,0.08789478,97367.0,97366.0,0.154057]
[1738808098655,0.08789478,97367.0,97366.0,0.25669993]
[1738808098863,0.1316,97373.0,97372.0,0.154048]
[1738808099083,0.0832,97373.0,97372.0,0.27955165]
[1738808099291,0.00469351,97373.0,97372.0,0.27955165]
[1738808099503,0.0832,97379.0,97378.0,0.304038]
[1738808099675,0.0832,97379.0,97378.0,0.40654165]
[1738808099874,0.1303,97393.0,97378.0,0.10250365]
[1738808100092,0.1303,97393.0,97389.0,0.15402]
[1738808100295,0.1303,97393.0,97380.0,0.14235737]
[1738808100296,0.00468573,97392.0,97390.0,0.25652165]
[1738808100697,0.00468573,97392.0,97390.0,0.10250365]
[1738808101380,0.00468563,97391.0,97390.0,0.10250365]
[1738808101603,0.154017,97392.0,97390.0,0.10250365]
[1738808101878,0.00468563,97391.0,97390.0,0.10250365]
[1738808102913,0.08788563,97391.0,97390.0,0.10250365]
[1738808104107,0.08788563,97391.0,97390.0,0.25250365]
[1738808104291,0.00468563,97391.0,97390.0,0.27550365]
[1738808104421,0.0756068,97397.0,97390.0,0.10250365]
[1738808104864,0.00469014,97396.0,97395.0,0.154011]
[1738808105066,0.00469014,97396.0,97395.0,0.25651465]
[1738808105289,0.0001068,97397.0,97396.0,0.15]
[1738808105627,0.0001068,97397.0,97396.0,0.2765302]
[1738808105827,0.0001068,97397.0,97396.0,0.27550365]
[1738808106032,0.0001068,97397.0,97396.0,0.59580365]
[1738808108595,0.0001068,97397.0,97396.0,0.60588735]
[1738808109334,0.0001068,97397.0,97396.0,0.82748735]
[1738808109548,0.0001068,97397.0,97396.0,0.86915467]
[1738808110567,0.0001068,97397.0,97396.0,0.89055467]
[1738808110841,0.0001068,97397.0,97396.0,0.93021161]
[1738808111519,7e-05,97402.0,97401.0,0.314002]
[1738808111731,7e-05,97402.0,97401.0,2.0490724]
[1738808111944,7e-05,97402.0,97401.0,2.09379471]
[1738808112161,7e-05,97402.0,97401.0,2.12343128]
[1738808113060,7e-05,97402.0,97401.0,2.14242271]
[1738808113307,7e-05,97402.0,97401.0,2.53392271]
[1738808113537,0.0125358,97404.0,97403.0,0.02]
[1738808113749,0.0125358,97404.0,97403.0,0.4821962]
[1738808113976,0.0125358,97404.0,97403.0,0.54552885]
[1738808114181,0.00875355,97404.0,97403.0,0.48116997]
[1738808114394,0.00875355,97404.0,97403.0,0.5001614]
[1738808115211,0.00875355,97404.0,97403.0,1.1693614]
[1738808115646,0.0823,97425.0,97403.0,1.01402445]
[1738808115848,0.082,97418.0,97416.0,0.10250365]
[1738808116249,0.2857642,97417.0,97416.0,0.10250365]
[1738808117197,0.2857642,97417.0,97403.0,0.0493208]
[1738808117444,0.205338,97401.0,97387.0,0.08291659]
[1738808117677,0.0795,97389.0,97387.0,0.08291659]
[1738808117909,0.0795,97389.0,97375.0,0.3203]
[1738808118528,0.0795,97389.0,97365.0,0.01039414]
[1738808118765,0.154027,97385.0,97384.0,0.09111824]
[1738808118998,0.154027,97385.0,97384.0,0.19362189]
[1738808119263,0.15899084,97385.0,97384.0,0.19376117]
[1738808120600,0.00496384,97385.0,97384.0,0.19376117]
[1738808122354,0.00496384,97385.0,97384.0,0.10264293]
[1738808123096,0.08536384,97385.0,97384.0,0.00013928]
[1738808123302,0.08536384,97385.0,97384.0,0.10264293]
[1738808123731,0.08536384,97385.0,97384.0,0.25264293]
[1738808124138,0.0804,97385.0,97384.0,0.25264293]
[1738808124341,0.0804,97385.0,97384.0,0.30196392]
[1738808124922,0.08533721,97385.0,97384.0,0.3021882]
[1738808125058,0.0804,97385.0,97384.0,0.3021882]
[1738808125463,0.247257,97385.0,97384.0,0.1521882]
[1738808125672,0.234427,97385.0,97384.0,0.04968455]
[1738808125881,0.23936976,97385.0,97384.0,0.04968455]
[1738808126995,0.23936976,97385.0,97384.0,0.00036356]
[1738808132366,0.276946,97373.0,97365.0,0.01896961]
[1738808132767,0.28188045,97373.0,97365.0,0.01896961]
[1738808132970,0.28188045,97373.0,97348.0,0.15]
[1738808133170,0.28188045,97373.0,97349.0,0.00102712]
[1738808133401,0.28188045,97373.0,97349.0,0.20647112]
[1738808133774,0.28188045,97373.0,97354.0,0.154076]
[1738808133985,0.28188045,97373.0,97353.0,0.154077]
[1738808134211,0.28188045,97373.0,97354.0,0.154076]
[1738808134379,0.28188045,97373.0,97352.0,0.01897715]
[1738808135613,0.28188045,97373.0,97352.0,0.04932853]
[1738808136224,0.28188045,97373.0,97355.0,0.154074]
[1738808136629,0.28188045,97373.0,97352.0,0.04932853]
[1738808136834,0.28188045,97373.0,97358.0,0.154069]
[1738808137031,0.28188045,97373.0,97352.0,0.01897715]
[1738808137458,0.28188045,97373.0,97353.0,0.154078]
[1738808137657,0.28188045,97373.0,97352.0,0.01897715]
[1738808138019,0.28188045,97373.0,97353.0,0.154078]
[1738808138911,0.28188045,97373.0,97352.0,0.01897715]
[1738808139311,0.28188045,97373.0,97353.0,0.154078]
[1738808139512,0.28188045,97373.0,97352.0,0.01897715]
[1738808139872,0.28188045,97373.0,97354.0,0.01897715]
[1738808140082,0.35114639,97373.0,97354.0,0.01897715]
[1738808140288,0.28188045,97373.0,97354.0,0.01897715]
[1738808141360,0.283375,97355.0,97354.0,0.01897715]
[1738808141562,0.15408,97352.0,97351.0,0.08291659]
[1738808141766,0.154089,97346.0,97341.0,0.08291659]
[1738808142197,0.15900306,97346.0,97331.0,0.09111824]
[1738808142805,0.30572237,97346.0,97331.0,0.09111824]
[1738808143394,0.24050306,97346.0,97331.0,0.09111824]
[1738808143829,0.24050306,97346.0,97328.0,0.00022407]
[1738808145093,0.45088821,97346.0,97328.0,0.00022407]
[1738808146428,0.55339186,97346.0,97328.0,0.00022407]
[1738808146634,0.31780286,97346.0,97328.0,0.00022407]
[1738808146853,0.233116,97329.0,97328.0,0.0006888]
[1738808147081,0.2564276,97329.0,97328.0,0.0006888]
[1738808147257,0.26131054,97329.0,97328.0,0.0006888]
[1738808147456,0.31041054,97329.0,97328.0,0.0006888]
[1738808148080,0.28709894,97329.0,97328.0,0.0006888]
[1738808151562,0.28709894,97329.0,97328.0,0.00050545]
[1738808152776,0.28709894,97329.0,97328.0,0.50050545]
[1738808153948,0.08388294,97329.0,97328.0,0.50050545]
[1738808154188,0.00488294,97329.0,97328.0,0.6030091]
[1738808154422,0.205468,97339.0,97328.0,0.6030091]
[1738808154651,0.205468,97339.0,97329.0,0.10250365]
[1738808154880,0.154106,97336.0,97329.0,0.10250365]
[1738808155080,0.154106,97336.0,97330.0,0.01899856]
[1738808155308,0.154106,97336.0,97331.0,0.10250365]
[1738808156135,0.154106,97336.0,97332.0,0.01899856]
[1738808156403,0.0778,97341.0,97333.0,0.10250365]
[1738808156587,0.1541968,97346.0,97334.0,0.154108]
[1738808156794,0.154092,97344.0,97335.0,0.10250365]
[1738808156984,0.0001068,97346.0,97335.0,0.10250365]
[1738808157245,0.1541968,97346.0,97336.0,0.01899856]
[1738808157411,0.0001068,97346.0,97337.0,0.10250365]
[1738808157944,0.154094,97344.0,97337.0,0.10250365]
[1738808158138,0.0001068,97346.0,97338.0,0.01899856]
[1738808158464,0.0001068,97346.0,97339.0,0.10250365]
[1738808158858,0.154098,97341.0,97339.0,0.10250365]
[1738808159321,0.154098,97341.0,97340.0,0.04941552]
[1738808159539,0.154098,97341.0,97340.0,0.15191917]
[1738808160461,0.154098,97341.0,97340.0,0.04941552]
[1738808160699,0.231898,97341.0,97340.0,0.04941552]
[1738808160919,0.231898,97341.0,97340.0,0.01899856]
[1738808161399,0.24235944,97341.0,97340.0,0.01899856]
[1738808162347,0.231898,97341.0,97340.0,0.50022428]
[1738808162784,0.317776,97341.0,97340.0,0.50022428]
[1738808163217,0.367376,97341.0,97340.0,0.50022428]
[1738808163652,0.46987965,97341.0,97340.0,0.50022428]
[1738808164315,0.63987965,97341.0,97340.0,0.50022428]
[1738808164676,0.98797965,97341.0,97340.0,0.12706343]
[1738808164908,0.154162,97300.0,97299.0,0.08314087]
[1738808165303,0.154162,97300.0,97299.0,0.00022428]
[1738808166414,0.154162,97300.0,97299.0,0.00036266]
[1738808166622,0.17155829,97300.0,97299.0,0.00036266]
[1738808167587,0.18205656,97300.0,97299.0,0.00036266]
[1738808168210,0.26175656,97300.0,97299.0,0.00036266]
[1738808169488,0.26658024,97300.0,97299.0,0.00036266]
[1738808169692,0.26658024,97300.0,97299.0,0.00017932]
[1738808170830,0.51908389,97300.0,97299.0,0.00017932]
[1738808171045,0.60038389,97300.0,97299.0,0.00017932]
[1738808176164,0.92548389,97300.0,97299.0,0.00017932]
[1738808177766,0.93384389,97300.0,97299.0,0.00017932]
[1738808179513,0.02,97287.0,97286.0,4.528e-05]
[1738808179635,0.304198,97277.0,97276.0,0.00022428]
[1738808179836,0.304198,97277.0,97276.0,0.00027073]
[1738808180106,0.30899912,97277.0,97276.0,0.00027073]
[1738808180522,0.47451049,97277.0,97276.0,0.00027073]
[1738808180731,0.56407984,97277.0,97276.0,0.00027073]
[1738808182164,0.57459117,97277.0,97276.0,0.00027073]
[1738808182566,0.56038345,97277.0,97276.0,0.00027073]
[1738808182970,0.64838345,97277.0,97276.0,0.00027073]
[1738808183172,0.67138345,97277.0,97276.0,0.00027073]
[1738808184733,0.68558644,97277.0,97276.0,0.00027073]
[1738808188599,0.47208279,97277.0,97276.0,0.00027073]
[1738808188766,0.18371344,97277.0,97276.0,0.00027073]
[1738808189640,0.16951045,97277.0,97276.0,0.00027073]
[1738808192418,0.18375595,97277.0,97276.0,0.00027073]
[1738808193348,0.4362596,97277.0,97276.0,0.00027073]
[1738808193590,0.67715186,97277.0,97276.0,0.00027073]
[1738808193843,0.68715186,97277.0,97276.0,0.00027073]
[1738808194863,0.01,97274.0,97247.0,0.08314087]
[1738808195086,0.154243,97249.0,97247.0,0.08314087]
[1738808195302,0.154239,97252.0,97247.0,0.08314087]
[1738808195664,0.154242,97250.0,97247.0,0.00022428]
[1738808196071,0.00478724,97249.0,97247.0,0.00022428]
[1738808197576,0.00478724,97249.0,97248.0,0.11917032]
[1738808197729,0.154232,97256.0,97248.0,0.11917032]
[1738808197956,0.154241,97250.0,97249.0,0.10250365]
[1738808198135,0.154239,97252.0,97249.0,0.10250365]
[1738808198335,0.00478665,97250.0,97249.0,0.10250365]
[1738808198608,0.154243,97249.0,97248.0,0.01666667]
[1738808198921,0.15903024,97249.0,97248.0,0.01666667]
[1738808199920,0.00478724,97249.0,97248.0,0.01666667]
[1738808200129,0.00478724,97249.0,97248.0,0.11917032]
[1738808200332,0.00478724,97249.0,97248.0,0.19677032]
[1738808200507,0.154226,97260.0,97251.0,0.154239]
[1738808200716,0.154226,97260.0,97252.0,0.10250365]
[1738808200882,0.154229,97258.0,97252.0,0.10250365]
[1738808201308,0.00478104,97257.0,97252.0,0.10250365]
[1738808203010,0.00478104,97257.0,97255.0,0.154232]
[1738808203164,0.154215,97267.0,97259.0,0.154226]
[1738808203370,0.154215,97267.0,97261.0,0.0813]
[1738808203571,0.00478143,97266.0,97261.0,0.18380365]
[1738808203775,0.154218,97265.0,97261.0,0.18380365]
[1738808204105,0.154221,97263.0,97261.0,0.18380365]
[1738808204304,0.00478124,97264.0,97261.0,0.18380365]
[1738808204489,0.00478153,97262.0,97261.0,0.18380365]
[1738808204695,0.154218,97265.0,97261.0,0.18380365]
[1738808204907,0.00478153,97262.0,97261.0,0.235524]
[1738808205232,0.205607,97273.0,97261.0,0.235524]
[1738808205233,0.205607,97273.0,97261.0,0.38492765]
[1738808205382,0.154211,97269.0,97262.0,0.10250365]
[1738808205809,0.00478213,97268.0,97262.0,0.10250365]
[1738808206184,0.00478213,97268.0,97263.0,0.15422]
[1738808206440,0.205612,97271.0,97264.0,0.10250365]
[1738808206640,0.154217,97265.0,97264.0,0.10250365]
[1738808206779,0.154211,97269.0,97264.0,0.10250365]
[1738808207322,0.00478213,97268.0,97264.0,0.10250365]
[1738808207697,0.15899513,97268.0,97264.0,0.10250365]
[1738808208334,0.00478213,97268.0,97264.0,0.10250365]
[1738808208736,0.205603,97275.0,97264.0,0.10250365]
[1738808208941,0.154214,97267.0,97264.0,0.10250365]
[1738808209262,0.00478114,97266.0,97264.0,0.10250365]
[1738808210322,0.205604,97274.0,97264.0,0.10250365]
[1738808210535,0.00478104,97265.0,97264.0,0.10250365]
[1738808210774,0.15421,97270.0,97264.0,0.10250365]
[1738808210975,0.00478055,97265.0,97264.0,0.10250365]
[1738808211197,0.154212,97269.0,97264.0,0.10250365]
[1738808211533,0.154215,97267.0,97264.0,0.10250365]
[1738808211733,0.04076294,97268.0,97262.0,0.00022449]
[1738808211911,0.154221,97263.0,97262.0,0.00022449]
[1738808212316,0.15900253,97263.0,97262.0,0.00022449]
[1738808214690,0.00478153,97263.0,97262.0,0.00022449]
[1738808215032,0.15422,97264.0,97262.0,0.00022449]
[1738808215226,0.00478798,97263.0,97262.0,0.00022449]
[1738808215424,0.00013898,97277.0,97275.0,0.1542]
[1738808215655,0.00013898,97277.0,97276.0,0.17760365]
[1738808216286,0.00013898,97277.0,97276.0,0.37630365]
[1738808220902,0.00013898,97277.0,97276.0,0.69660365]
[1738808221250,0.00024588,97277.0,97276.0,0.69660365]
[1738808226735,0.00024588,97277.0,97276.0,0.37630365]
[1738808228867,0.01568927,97277.0,97276.0,0.10250365]
[1738808229073,0.00024588,97277.0,97266.0,0.154216]
[1738808229251,0.00505105,97277.0,97267.0,0.10250365]
[1738808229511,0.00024588,97277.0,97271.0,0.154207]
[1738808229686,0.00024588,97277.0,97272.0,0.10250365]
[1738808230049,0.00481906,97276.0,97272.0,0.10250365]
[1738808231197,0.00481906,97276.0,97274.0,0.154202]
[1738808231403,0.00481906,97276.0,97275.0,0.10250365]
[1738808231609,0.00024588,97277.0,97276.0,0.1542]
[1738808231812,0.00024588,97277.0,97276.0,0.10250365]
[1738808232441,0.01568977,97277.0,97265.0,0.3203]
[1738808232643,0.00506494,97277.0,97268.0,0.205615]
[1738808232843,0.00024588,97277.0,97271.0,0.154207]
[1738808233046,0.00481896,97276.0,97271.0,0.10250365]
[1738808233204,0.00481896,97276.0,97263.0,0.15]
[1738808233406,0.15421,97270.0,97264.0,0.10250365]
[1738808233673,0.00482277,97269.0,97264.0,0.10250365]
[1738808233898,0.00482277,97269.0,97264.0,0.25672165]
[1738808234096,0.154207,97272.0,97264.0,0.25672165]
[1738808234272,0.00482267,97268.0,97264.0,0.25672165]
[1738808234604,0.00024588,97277.0,97264.0,0.10250365]
[1738808234780,0.00482016,97267.0,97265.0,0.205623]
[1738808234981,0.154206,97273.0,97266.0,0.10250365]
[1738808235193,0.154208,97272.0,97266.0,0.10250365]
[1738808235403,0.15421,97270.0,97266.0,0.10250365]
[1738808235605,0.154216,97266.0,97262.0,0.00022449]
[1738808235806,0.205619,97268.0,97263.0,0.10250365]
[1738808236027,0.15903899,97265.0,97263.0,0.10250365]
[1738808236181,0.154218,97265.0,97263.0,0.10250365]
[1738808236382,0.00482089,97264.0,97263.0,0.10250365]
[1738808236765,0.00482089,97264.0,97263.0,0.10241198]
[1738808237102,0.154211,97270.0,97263.0,0.10241198]
[1738808237306,0.0048202,97264.0,97263.0,0.10241198]
[1738808237502,0.205612,97271.0,97263.0,0.10241198]
[1738808237706,0.0048202,97264.0,97263.0,0.10241198]
[1738808238076,0.205612,97271.0,97263.0,0.10241198]
[1738808238224,0.154218,97265.0,97263.0,0.10241198]
[1738808238401,0.0048202,97264.0,97263.0,0.10241198]
[1738808239219,0.154218,97265.0,97263.0,0.10241198]
[1738808239415,0.154221,97263.0,97262.0,0.00022449]
[1738808239601,0.0048202,97264.0,97262.0,0.00022449]
[1738808239824,0.0048201,97263.0,97262.0,0.00022449]
[1738808240039,0.01590381,97263.0,97262.0,0.00022449]
[1738808240237,0.02072391,97263.0,97262.0,0.00022449]
[1738808240691,0.0048201,97263.0,97262.0,0.00022449]
[1738808240887,0.205611,97271.0,97262.0,0.00022449]
[1738808241099,0.0048114,97263.0,97262.0,0.00022449]
[1738808241304,0.154216,97266.0,97262.0,0.00022449]
[1738808241529,0.00024588,97277.0,97262.0,0.00022449]
[1738808241530,0.0048114,97263.0,97262.0,0.00022449]
[1738808241737,0.00024588,97277.0,97262.0,0.10272814]
[1738808241949,0.00024588,97277.0,97263.0,0.10250365]
[1738808242078,0.00024588,97277.0,97264.0,0.0787]
[1738808242280,0.00024588,97277.0,97275.0,0.1542]
[1738808242608,0.00024588,97277.0,97276.0,0.10250365]
[1738808247091,0.00505544,97277.0,97276.0,0.10250365]
[1738808247928,0.00505544,97277.0,97270.0,0.15]
[1738808248147,0.00024588,97277.0,97272.0,0.15]
[1738808248347,0.00024588,97277.0,97273.0,0.10250365]
[1738808249623,0.00480946,97276.0,97273.0,0.10250365]
[1738808249830,0.00480946,97276.0,97273.0,0.25670765]
[1738808250459,0.00480936,97275.0,97273.0,0.25670765]
[1738808250800,0.00024588,97277.0,97273.0,0.25670765]
[1738808251009,0.00481512,97274.0,97273.0,0.25670765]
[1738808251416,0.00024588,97277.0,97273.0,0.10250365]
[1738808251926,0.00481531,97276.0,97273.0,0.10250365]
[1738808252338,0.00024588,97277.0,97273.0,0.10250365]
[1738808252548,0.00024588,97277.0,97276.0,0.1542]